[Event "Live Chess"]
[Site "Chess.com"]
[Date "2023.05.21"]
[Round "-"]
[White "Cimon"]
[Black "lateforthesky"]
[Result "0-1"]
[WhiteElo "1844"]
[BlackElo "2077"]
[TimeControl "300"]
[EndTime "8:59:59 PDT"]
[Termination "lateforthesky won on time"]

1. Nf3 {[%clk 0:04:57.7]} 1... g6 {[%clk 0:04:58.8]} 2. d4 {[%clk 0:04:55.5]}
2... Bg7 {[%clk 0:04:58]} 3. h4 {[%clk 0:04:52.6]} 3... Nf6 {[%clk 0:04:55.9]}
4. Nc3 {[%clk 0:04:49.6]} 4... d6 {[%clk 0:04:54.6]} 5. e4 {[%clk 0:04:47.9]}
5... h5 {[%clk 0:04:52.4]} 6. Ng5 {[%clk 0:04:45]} 6... O-O {[%clk 0:04:45.9]}
7. f3 {[%clk 0:04:43.8]} 7... c5 {[%clk 0:04:44]} 8. Be3 {[%clk 0:04:42]} 8...
cxd4 {[%clk 0:04:40.6]} 9. Bxd4 {[%clk 0:04:40.8]} 9... Nc6 {[%clk 0:04:39.7]}
10. Be3 {[%clk 0:04:39.6]} 10... a6 {[%clk 0:04:26.7]} 11. Qd2 {[%clk
0:04:37.5]} 11... b5 {[%clk 0:04:24.7]} 12. O-O-O {[%clk 0:04:31.9]} 12... Qa5
{[%clk 0:04:09.9]} 13. Kb1 {[%clk 0:04:26.1]} 13... Bd7 {[%clk 0:04:08.8]} 14.
Nd5 {[%clk 0:04:02]} 14... Qxd2 {[%clk 0:04:05.5]} 15. Rxd2 {[%clk 0:03:59]}
15... Nxd5 {[%clk 0:03:58.7]} 16. exd5 {[%clk 0:03:56.3]} 16... Ne5 {[%clk
0:03:55.9]} 17. b3 {[%clk 0:03:45.5]} 17... Rfc8 {[%clk 0:03:49.2]} 18. Be2
{[%clk 0:03:32.8]} 18... a5 {[%clk 0:03:43.7]} 19. f4 {[%clk 0:03:28.9]} 19...
Ng4 {[%clk 0:03:41.2]} 20. Bxg4 {[%clk 0:03:27.4]} 20... Bxg4 {[%clk 0:03:39.2]}
21. Bd4 {[%clk 0:03:20.4]} 21... Bxd4 {[%clk 0:03:34.2]} 22. Rxd4 {[%clk
0:03:19.3]} 22... Bf5 {[%clk 0:03:33.1]} 23. Rc1 {[%clk 0:03:13.4]} 23... a4
{[%clk 0:03:28.9]} 24. Kb2 {[%clk 0:03:04.9]} 24... axb3 {[%clk 0:03:08.1]} 25.
axb3 {[%clk 0:03:01.1]} 25... Rc5 {[%clk 0:02:57.2]} 26. Ne4 {[%clk 0:02:48.6]}
26... Rc7 {[%clk 0:02:42]} 27. Ng3 {[%clk 0:02:36.2]} 27... Bg4 {[%clk
0:02:33.5]} 28. Re1 {[%clk 0:02:26.4]} 28... Kf8 {[%clk 0:02:29.3]} 29. Rb4
{[%clk 0:02:20.5]} 29... Rac8 {[%clk 0:02:25.4]} 30. Rxb5 {[%clk 0:02:12.3]}
30... Rxc2+ {[%clk 0:02:22.6]} 31. Ka3 {[%clk 0:02:11.4]} 31... Rxg2 {[%clk
0:02:20.3]} 32. Ne4 {[%clk 0:02:07.6]} 32... Bf5 {[%clk 0:01:51.3]} 33. Ng5
{[%clk 0:02:03.5]} 33... Rg4 {[%clk 0:01:39.1]} 34. Rb7 {[%clk 0:02:00.3]} 34...
Ra8+ {[%clk 0:01:33.1]} 35. Kb2 {[%clk 0:01:55.1]} 35... Re8 {[%clk 0:01:30.3]}
36. b4 {[%clk 0:01:45.2]} 36... Rxf4 {[%clk 0:01:26.6]} 37. b5 {[%clk
0:01:43.3]} 37... Bd3 {[%clk 0:01:12.5]} 38. b6 {[%clk 0:01:38.7]} 38... Ba6
{[%clk 0:01:10.8]} 39. Rc7 {[%clk 0:01:35.9]} 39... Rb4+ {[%clk 0:01:09.4]} 40.
Kc3 {[%clk 0:01:27.9]} 40... Rxb6 {[%clk 0:01:08.2]} 41. Re3 {[%clk 0:01:15.9]}
41... Rb7 {[%clk 0:00:58.6]} 42. Rxb7 {[%clk 0:01:08.9]} 42... Bxb7 {[%clk
0:00:57.6]} 43. Kd4 {[%clk 0:01:07.5]} 43... Ra8 {[%clk 0:00:55]} 44. Rf3 {[%clk
0:01:05]} 44... Ra4+ {[%clk 0:00:48.4]} 45. Kc3 {[%clk 0:01:03]} 45... Ra3+
{[%clk 0:00:47.3]} 46. Kd4 {[%clk 0:00:59.9]} 46... Rxf3 {[%clk 0:00:44.4]} 47.
Nxf3 {[%clk 0:00:58.6]} 47... e5+ {[%clk 0:00:36.7]} 48. Kc4 {[%clk 0:00:53.1]}
48... f6 {[%clk 0:00:28.3]} 49. Ne1 {[%clk 0:00:45.1]} 49... g5 {[%clk
0:00:25.7]} 50. Ng2 {[%clk 0:00:41.1]} 50... g4 {[%clk 0:00:23]} 51. Ne3 {[%clk
0:00:38.5]} 51... Bc8 {[%clk 0:00:18.9]} 52. Kd3 {[%clk 0:00:36.8]} 52... f5
{[%clk 0:00:17.9]} 53. Ke2 {[%clk 0:00:34.9]} 53... f4 {[%clk 0:00:17.2]} 54.
Nf1 {[%clk 0:00:33.2]} 54... Kf7 {[%clk 0:00:16.4]} 55. Kd3 {[%clk 0:00:31.8]}
55... Kf6 {[%clk 0:00:16.1]} 56. Kc4 {[%clk 0:00:28.8]} 56... Bf5 {[%clk
0:00:15.2]} 57. Kb5 {[%clk 0:00:27.3]} 57... g3 {[%clk 0:00:14.4]} 58. Nd2
{[%clk 0:00:22.8]} 58... g2 {[%clk 0:00:12.8]} 59. Nf3 {[%clk 0:00:20.6]} 59...
Be4 {[%clk 0:00:11.6]} 60. Ng1 {[%clk 0:00:19.1]} 60... f3 {[%clk 0:00:10.9]}
61. Kc6 {[%clk 0:00:17.1]} 61... f2 {[%clk 0:00:10.1]} 62. Ne2 {[%clk
0:00:14.9]} 62... f1=Q {[%clk 0:00:08.7]} 63. Kxd6 {[%clk 0:00:13.9]} 63... Qxe2
{[%clk 0:00:07.3]} 64. Kd7 {[%clk 0:00:12.6]} 64... Bxd5 {[%clk 0:00:06.6]} 65.
Kc7 {[%clk 0:00:10.8]} 65... Qd3 {[%clk 0:00:06.1]} 66. Kb6 {[%clk 0:00:09.3]}
66... Qc4 {[%clk 0:00:04.8]} 67. Ka5 {[%clk 0:00:07.2]} 67... Qxh4 {[%clk
0:00:04.2]} 68. Kb6 {[%clk 0:00:06]} 68... Qc4 {[%clk 0:00:03.9]} 69. Ka7 {[%clk
0:00:04.1]} 69... Qc6 {[%clk 0:00:03.6]} 70. Kb8 {[%clk 0:00:02.3]} 70... Bc4
{[%clk 0:00:03.2]} 71. Ka7 {[%clk 0:00:01]} 71... Qc7+ {[%clk 0:00:02]} 0-1

[Event "Live Chess"]
[Site "Chess.com"]
[Date "2023.05.21"]
[Round "-"]
[White "Ninifu"]
[Black "MartinWalker4"]
[Result "1/2-1/2"]
[WhiteElo "2025"]
[BlackElo "2092"]
[TimeControl "300"]
[EndTime "9:00:01 PDT"]
[Termination "Game drawn by agreement"]

1. d4 {[%clk 0:04:55.1]} 1... Nf6 {[%clk 0:04:57.9]} 2. c4 {[%clk 0:04:53.5]}
2... g6 {[%clk 0:04:56.3]} 3. Nc3 {[%clk 0:04:52.3]} 3... d5 {[%clk 0:04:55]} 4.
Nf3 {[%clk 0:04:51]} 4... Bg7 {[%clk 0:04:53]} 5. cxd5 {[%clk 0:04:49.6]} 5...
Nxd5 {[%clk 0:04:51.2]} 6. e4 {[%clk 0:04:49]} 6... Nxc3 {[%clk 0:04:49.4]} 7.
bxc3 {[%clk 0:04:48.4]} 7... O-O {[%clk 0:04:47.8]} 8. Be2 {[%clk 0:04:46.8]}
8... c5 {[%clk 0:04:45.6]} 9. Rb1 {[%clk 0:04:46]} 9... cxd4 {[%clk 0:04:43.3]}
10. cxd4 {[%clk 0:04:44.8]} 10... Qa5+ {[%clk 0:04:41.9]} 11. Qd2 {[%clk
0:04:43.6]} 11... Qxd2+ {[%clk 0:04:38.4]} 12. Bxd2 {[%clk 0:04:42.6]} 12... Nc6
{[%clk 0:04:37.3]} 13. Be3 {[%clk 0:04:38.3]} 13... Bg4 {[%clk 0:04:32.4]} 14.
d5 {[%clk 0:04:35.7]} 14... Bxf3 {[%clk 0:04:30.3]} 15. Bxf3 {[%clk 0:04:34.1]}
15... Ne5 {[%clk 0:04:29.2]} 16. Be2 {[%clk 0:04:31.8]} 16... b6 {[%clk
0:04:21.2]} 17. Kd2 {[%clk 0:04:30.8]} 17... e6 {[%clk 0:04:13.7]} 18. f4 {[%clk
0:04:20.6]} 18... Nd7 {[%clk 0:04:09.8]} 19. dxe6 {[%clk 0:04:11.4]} 19... fxe6
{[%clk 0:04:03]} 20. e5 {[%clk 0:03:54.1]} 20... Rac8 {[%clk 0:03:53]} 21. Rhc1
{[%clk 0:03:51.4]} 21... Rfd8 {[%clk 0:03:42.1]} 22. Rxc8 {[%clk 0:03:11]} 22...
Rxc8 {[%clk 0:03:40.3]} 23. Rc1 {[%clk 0:03:10.4]} 23... Rxc1 {[%clk 0:03:12.3]}
24. Kxc1 {[%clk 0:03:09]} 24... Kf7 {[%clk 0:03:10.5]} 25. Kc2 {[%clk
0:03:00.8]} 25... Ke7 {[%clk 0:03:07.3]} 26. Kd3 {[%clk 0:02:55.5]} 26... Kd8
{[%clk 0:02:44.7]} 27. Ke4 {[%clk 0:02:53.2]} 27... g5 {[%clk 0:02:37.2]} 28. g3
{[%clk 0:02:49.9]} 28... gxf4 {[%clk 0:02:35.4]} 29. gxf4 {[%clk 0:02:48.8]}
29... Ke7 {[%clk 0:02:27.6]} 30. Bd4 {[%clk 0:02:21.8]} 30... Nc5+ {[%clk
0:02:13]} 31. Bxc5+ {[%clk 0:02:20.3]} 31... bxc5 {[%clk 0:02:11.4]} 32. Bc4
{[%clk 0:02:13.5]} 32... Kd7 {[%clk 0:02:08.2]} 33. h4 {[%clk 0:02:07.2]} 33...
Ke7 {[%clk 0:01:49.8]} 34. h5 {[%clk 0:02:04.6]} 34... Bh6 {[%clk 0:01:41.4]}
35. Bb5 {[%clk 0:01:52.1]} 35... Kf7 {[%clk 0:01:27.2]} 1/2-1/2

[Event "Live Chess"]
[Site "Chess.com"]
[Date "2023.05.21"]
[Round "-"]
[White "ConorMaclaud"]
[Black "zdanevych"]
[Result "1-0"]
[WhiteElo "2105"]
[BlackElo "1459"]
[TimeControl "300"]
[EndTime "9:00:01 PDT"]
[Termination "ConorMaclaud won by resignation"]

1. Nf3 {[%clk 0:04:58.9]} 1... d5 {[%clk 0:04:57.7]} 2. e4 {[%clk 0:04:57.7]}
2... dxe4 {[%clk 0:04:56.6]} 3. Ng5 {[%clk 0:04:56.6]} 3... Nf6 {[%clk
0:04:56.2]} 4. Nc3 {[%clk 0:04:55.9]} 4... h6 {[%clk 0:04:54.6]} 5. Ngxe4 {[%clk
0:04:54.3]} 5... Nxe4 {[%clk 0:04:54.5]} 6. Nxe4 {[%clk 0:04:53.5]} 6... Bf5
{[%clk 0:04:53.5]} 7. Ng3 {[%clk 0:04:52]} 7... Bg6 {[%clk 0:04:52.5]} 8. Bc4
{[%clk 0:04:50.6]} 8... e6 {[%clk 0:04:51.7]} 9. d3 {[%clk 0:04:49.7]} 9... Bd6
{[%clk 0:04:49.8]} 10. O-O {[%clk 0:04:48.3]} 10... O-O {[%clk 0:04:49.5]} 11.
Qg4 {[%clk 0:04:43.6]} 11... Nc6 {[%clk 0:04:45.1]} 12. Bxe6 {[%clk 0:04:24.5]}
12... fxe6 {[%clk 0:04:42.1]} 13. Qxg6 {[%clk 0:04:22.9]} 13... Ne5 {[%clk
0:04:37.5]} 14. Qe4 {[%clk 0:04:20.7]} 14... c6 {[%clk 0:04:24.1]} 15. f4 {[%clk
0:04:19.7]} 15... Ng4 {[%clk 0:04:17.9]} 16. Qxe6+ {[%clk 0:04:17.2]} 16... Kh8
{[%clk 0:04:11.8]} 17. Qxg4 {[%clk 0:04:16.6]} 1-0

[Event "Live Chess"]
[Site "Chess.com"]
[Date "2023.05.21"]
[Round "-"]
[White "TheSmoulderingMaster"]
[Black "ramses-IIG"]
[Result "1-0"]
[WhiteElo "1683"]
[BlackElo "864"]
[TimeControl "300"]
[EndTime "9:00:02 PDT"]
[Termination "TheSmoulderingMaster won by resignation"]

1. e4 {[%clk 0:04:58.4]} 1... d5 {[%clk 0:04:59.9]} 2. exd5 {[%clk 0:04:57.5]}
2... Qxd5 {[%clk 0:04:59.7]} 3. Nc3 {[%clk 0:04:56.8]} 3... Qe6+ {[%clk
0:04:59.6]} 4. Be2 {[%clk 0:04:54.9]} 4... Qg6 {[%clk 0:04:59.5]} 5. Nf3 {[%clk
0:04:53.9]} 5... Qxg2 {[%clk 0:04:58]} 6. Rg1 {[%clk 0:04:52.6]} 6... Qh3 {[%clk
0:04:57.9]} 7. d4 {[%clk 0:04:49]} 7... c6 {[%clk 0:04:56.8]} 8. Bc4 {[%clk
0:04:47.9]} 8... Qd7 {[%clk 0:04:54.8]} 9. Bxf7+ {[%clk 0:04:45.2]} 9... Kxf7
{[%clk 0:04:53.1]} 10. Ne5+ {[%clk 0:04:44.4]} 10... Ke6 {[%clk 0:04:48.7]} 11.
Qg4+ {[%clk 0:04:39.5]} 11... Kd6 {[%clk 0:04:45.8]} 12. Ne4+ {[%clk 0:04:37.6]}
1-0

[Event "Live Chess"]
[Site "Chess.com"]
[Date "2023.05.21"]
[Round "-"]
[White "Mugzwang"]
[Black "tpm07"]
[Result "0-1"]
[WhiteElo "1437"]
[BlackElo "1960"]
[TimeControl "300"]
[EndTime "9:00:03 PDT"]
[Termination "tpm07 won on time"]

1. Nf3 {[%clk 0:04:54.8]} 1... d5 {[%clk 0:04:57]} 2. c4 {[%clk 0:04:53]} 2...
d4 {[%clk 0:04:55.2]} 3. e3 {[%clk 0:04:51.8]} 3... Nc6 {[%clk 0:04:51]} 4. exd4
{[%clk 0:04:37.8]} 4... Nxd4 {[%clk 0:04:48.2]} 5. Nxd4 {[%clk 0:04:36.2]} 5...
Qxd4 {[%clk 0:04:46.1]} 6. Be2 {[%clk 0:04:31.7]} 6... e5 {[%clk 0:04:43.3]} 7.
O-O {[%clk 0:04:30.1]} 7... Bd6 {[%clk 0:04:33.6]} 8. Nc3 {[%clk 0:04:25.3]}
8... Bd7 {[%clk 0:04:24.4]} 9. Bf3 {[%clk 0:04:01]} 9... c6 {[%clk 0:04:17.4]}
10. Ne4 {[%clk 0:03:39.8]} 10... Bc7 {[%clk 0:04:13.3]} 11. Qc2 {[%clk
0:03:25.2]} 11... f5 {[%clk 0:04:08]} 12. Nc3 {[%clk 0:03:12.8]} 12... Nf6
{[%clk 0:03:58.8]} 13. d3 {[%clk 0:02:56.3]} 13... Qh4 {[%clk 0:03:54.4]} 14. g3
{[%clk 0:02:40.5]} 14... Qh3 {[%clk 0:03:50]} 15. Bg2 {[%clk 0:02:38.9]} 15...
Qh5 {[%clk 0:03:48.1]} 16. Qe2 {[%clk 0:02:03.4]} 16... Qxe2 {[%clk 0:03:35.2]}
17. Nxe2 {[%clk 0:02:01.5]} 17... O-O {[%clk 0:03:34.6]} 18. f4 {[%clk
0:01:57.4]} 18... Rae8 {[%clk 0:03:16.3]} 19. fxe5 {[%clk 0:01:43.2]} 19... Bxe5
{[%clk 0:03:11.3]} 20. d4 {[%clk 0:01:30.4]} 20... Bc7 {[%clk 0:03:04.7]} 21.
Nf4 {[%clk 0:01:15.2]} 21... Ne4 {[%clk 0:02:58.1]} 22. b3 {[%clk 0:00:58.8]}
22... Nc3 {[%clk 0:02:24.4]} 23. Bb2 {[%clk 0:00:49.6]} 23... Bxf4 {[%clk
0:02:22]} 24. gxf4 {[%clk 0:00:43.6]} 24... Re3 {[%clk 0:02:03.9]} 25. Rf3
{[%clk 0:00:33.6]} 25... Ne2+ {[%clk 0:01:39.7]} 26. Kf2 {[%clk 0:00:25.2]}
26... Rxf3+ {[%clk 0:01:38.3]} 27. Kxf3 {[%clk 0:00:18.1]} 27... Re8 {[%clk
0:01:37.7]} 28. Bf1 {[%clk 0:00:15.5]} 28... Ng1+ {[%clk 0:01:17.4]} 29. Kf2
{[%clk 0:00:10.7]} 29... c5 {[%clk 0:01:11.1]} 30. Kxg1 {[%clk 0:00:08.5]} 30...
cxd4 {[%clk 0:01:10.3]} 31. Re1 {[%clk 0:00:05.8]} 31... Rxe1 {[%clk 0:01:08]}
32. Bxd4 {[%clk 0:00:03.7]} 32... a6 {[%clk 0:00:59.6]} 33. Bc5 {[%clk
0:00:01.5]} 33... Bc6 {[%clk 0:00:58.1]} 34. Kf2 {[%clk 0:00:00.3]} 34... Ra1
{[%clk 0:00:54.5]} 0-1

[Event "Live Chess"]
[Site "Chess.com"]
[Date "2023.05.21"]
[Round "-"]
[White "Ian-Morley"]
[Black "OleksiyJr1"]
[Result "1/2-1/2"]
[WhiteElo "1120"]
[BlackElo "1027"]
[TimeControl "300"]
[EndTime "9:00:04 PDT"]
[Termination "Game drawn by agreement"]

1. e4 {[%clk 0:04:57.5]} 1... c5 {[%clk 0:04:58.7]} 2. Nf3 {[%clk 0:04:56.1]}
2... Nc6 {[%clk 0:04:56.7]} 3. Bb5 {[%clk 0:04:54.8]} 3... d6 {[%clk 0:04:53.2]}
4. Bxc6+ {[%clk 0:04:54.2]} 4... bxc6 {[%clk 0:04:51.8]} 5. O-O {[%clk
0:04:53.9]} 5... e5 {[%clk 0:04:51.3]} 6. Re1 {[%clk 0:04:53.5]} 6... Nf6 {[%clk
0:04:50.9]} 7. c3 {[%clk 0:04:53.2]} 7... Bg4 {[%clk 0:04:50.1]} 8. d4 {[%clk
0:04:52.5]} 8... cxd4 {[%clk 0:04:48.1]} 9. cxd4 {[%clk 0:04:52.1]} 9... Be7
{[%clk 0:04:44.8]} 10. dxe5 {[%clk 0:04:51.1]} 10... dxe5 {[%clk 0:04:43.2]} 11.
Qxd8+ {[%clk 0:04:49.7]} 11... Rxd8 {[%clk 0:04:43.1]} 12. Nc3 {[%clk
0:04:41.6]} 12... Bxf3 {[%clk 0:04:40.1]} 13. gxf3 {[%clk 0:04:40.7]} 13... O-O
{[%clk 0:04:39.2]} 14. Rd1 {[%clk 0:04:39.9]} 14... Rxd1+ {[%clk 0:04:33.6]} 15.
Nxd1 {[%clk 0:04:38.6]} 15... Bc5 {[%clk 0:04:32.3]} 16. Be3 {[%clk 0:04:37.5]}
16... Bxe3 {[%clk 0:04:31.1]} 17. fxe3 {[%clk 0:04:36.7]} 17... Nd7 {[%clk
0:04:27.4]} 18. Nc3 {[%clk 0:04:36]} 18... f6 {[%clk 0:04:26.1]} 19. Rd1 {[%clk
0:04:35.2]} 19... Rd8 {[%clk 0:04:24.1]} 20. a3 {[%clk 0:04:30.8]} 20... Kf7
{[%clk 0:04:22.6]} 21. b4 {[%clk 0:04:30]} 21... Ke7 {[%clk 0:04:15.8]} 22. a4
{[%clk 0:04:27.6]} 22... Nb6 {[%clk 0:04:14]} 23. b5 {[%clk 0:04:26.5]} 23...
cxb5 {[%clk 0:04:10.7]} 24. Rxd8 {[%clk 0:04:25]} 24... Kxd8 {[%clk 0:04:09.6]}
25. axb5 {[%clk 0:04:24.4]} 25... Nc4 {[%clk 0:04:07.9]} 26. Kf2 {[%clk
0:04:21.2]} 26... Kc7 {[%clk 0:04:05.5]} 27. Nd5+ {[%clk 0:04:19.8]} 27... Kd6
{[%clk 0:04:03.3]} 28. Nc3 {[%clk 0:04:17.2]} 28... Kc5 {[%clk 0:04:00.9]} 29.
b6 {[%clk 0:04:12.1]} 29... Nxb6 {[%clk 0:03:59.4]} 1/2-1/2

[Event "Live Chess"]
[Site "Chess.com"]
[Date "2023.05.21"]
[Round "-"]
[White "wot-not"]
[Black "MarkLim1"]
[Result "0-1"]
[WhiteElo "1535"]
[BlackElo "1721"]
[TimeControl "300"]
[EndTime "9:00:07 PDT"]
[Termination "MarkLim1 won by resignation"]

1. e4 {[%clk 0:04:56.1]} 1... c6 {[%clk 0:04:59.2]} 2. f4 {[%clk 0:04:55.4]}
2... d5 {[%clk 0:04:58.4]} 3. e5 {[%clk 0:04:55.1]} 3... h5 {[%clk 0:04:57.5]}
4. Nf3 {[%clk 0:04:54.9]} 4... Bg4 {[%clk 0:04:56.6]} 5. d4 {[%clk 0:04:54.7]}
5... e6 {[%clk 0:04:55.8]} 6. Bd3 {[%clk 0:04:53.3]} 6... Nh6 {[%clk 0:04:54]}
7. O-O {[%clk 0:04:52.1]} 7... Nd7 {[%clk 0:04:52.4]} 8. c3 {[%clk 0:04:50.8]}
8... c5 {[%clk 0:04:51.5]} 9. Nbd2 {[%clk 0:04:48.4]} 9... cxd4 {[%clk
0:04:50.5]} 10. cxd4 {[%clk 0:04:47.4]} 10... Qb6 {[%clk 0:04:50.1]} 11. Nb3
{[%clk 0:04:42.8]} 11... g6 {[%clk 0:04:47]} 12. h3 {[%clk 0:04:42]} 12... Bxf3
{[%clk 0:04:45.7]} 13. Qxf3 {[%clk 0:04:41.2]} 13... Nf5 {[%clk 0:04:45]} 14.
Bxf5 {[%clk 0:04:39.9]} 14... gxf5 {[%clk 0:04:43.8]} 15. Be3 {[%clk 0:04:35.6]}
15... O-O-O {[%clk 0:04:40.3]} 16. Rfc1+ {[%clk 0:04:23.4]} 16... Kb8 {[%clk
0:04:38.8]} 17. Nc5 {[%clk 0:04:21.4]} 17... Nxc5 {[%clk 0:04:36]} 18. dxc5
{[%clk 0:04:20.8]} 18... Qc6 {[%clk 0:04:34.7]} 19. b4 {[%clk 0:04:19.5]} 19...
Be7 {[%clk 0:04:26.3]} 20. a4 {[%clk 0:04:18.3]} 20... d4 {[%clk 0:04:24.9]} 21.
Qxc6 {[%clk 0:04:12.8]} 21... bxc6 {[%clk 0:04:23.9]} 22. Bf2 {[%clk 0:04:10.1]}
22... d3 {[%clk 0:04:18]} 23. b5 {[%clk 0:04:05.5]} 23... cxb5 {[%clk
0:04:15.2]} 24. axb5 {[%clk 0:04:04.1]} 24... Rd5 {[%clk 0:04:13.4]} 25. b6
{[%clk 0:03:54.8]} 25... axb6 {[%clk 0:04:11.6]} 26. cxb6 {[%clk 0:03:54.3]}
26... d2 {[%clk 0:04:06.8]} 27. Rd1 {[%clk 0:03:52.8]} 27... Rc8 {[%clk
0:04:05.4]} 28. Kf1 {[%clk 0:03:45.8]} 28... Rc2 {[%clk 0:03:54.4]} 29. Ke2
{[%clk 0:03:44.3]} 29... Bb4 {[%clk 0:03:51.6]} 30. Ra7 {[%clk 0:03:37.3]} 30...
Rc4 {[%clk 0:03:44.9]} 31. Rxf7 {[%clk 0:03:30.1]} 31... Rxf4 {[%clk 0:03:43]}
32. Re7 {[%clk 0:02:59.9]} 32... Re4+ {[%clk 0:03:40.2]} 33. Be3 {[%clk
0:02:57.7]} 33... f4 {[%clk 0:03:34.4]} 34. Kf3 {[%clk 0:02:52.7]} 34... Rxe3+
{[%clk 0:03:24.7]} 35. Kxf4 {[%clk 0:02:51.7]} 35... Bxe7 {[%clk 0:03:19.3]} 0-1

[Event "Live Chess"]
[Site "Chess.com"]
[Date "2023.05.21"]
[Round "-"]
[White "friarnator"]
[Black "Pablo_dmp"]
[Result "1-0"]
[WhiteElo "2039"]
[BlackElo "1826"]
[TimeControl "300"]
[EndTime "9:00:19 PDT"]
[Termination "friarnator won by resignation"]

1. e4 {[%clk 0:04:58.5]} 1... c6 {[%clk 0:04:57.6]} 2. d4 {[%clk 0:04:57.5]}
2... d5 {[%clk 0:04:57.3]} 3. Nc3 {[%clk 0:04:57.1]} 3... dxe4 {[%clk
0:04:55.1]} 4. Nxe4 {[%clk 0:04:57]} 4... Nf6 {[%clk 0:04:54]} 5. Nxf6+ {[%clk
0:04:55.5]} 5... exf6 {[%clk 0:04:53.9]} 6. c3 {[%clk 0:04:55]} 6... Bd6 {[%clk
0:04:51.5]} 7. Bd3 {[%clk 0:04:54.5]} 7... O-O {[%clk 0:04:49.6]} 8. Ne2 {[%clk
0:04:54.2]} 8... Re8 {[%clk 0:04:44.7]} 9. Qc2 {[%clk 0:04:53.5]} 9... h5 {[%clk
0:04:42.5]} 10. O-O {[%clk 0:04:53.1]} 10... h4 {[%clk 0:04:39.6]} 11. h3 {[%clk
0:04:52.7]} 11... Nd7 {[%clk 0:04:35.6]} 12. Bd2 {[%clk 0:04:51.1]} 12... Nf8
{[%clk 0:04:34.2]} 13. Rae1 {[%clk 0:04:50.8]} 13... Be6 {[%clk 0:04:02.5]} 14.
f4 {[%clk 0:04:47.7]} 14... Qd7 {[%clk 0:03:51.1]} 15. f5 {[%clk 0:04:43.1]}
15... Bd5 {[%clk 0:03:44.8]} 16. c4 {[%clk 0:04:41.3]} 16... Bc7 {[%clk
0:03:18.8]} 17. cxd5 {[%clk 0:04:39.4]} 17... Qxd5 {[%clk 0:03:14.9]} 18. Bc4
{[%clk 0:04:33.7]} 18... Qd6 {[%clk 0:03:13]} 19. Bf4 {[%clk 0:04:30.6]} 19...
Qd7 {[%clk 0:03:11.2]} 20. Bxc7 {[%clk 0:04:28.9]} 20... Qxc7 {[%clk 0:03:11.1]}
21. Nc3 {[%clk 0:04:20.2]} 21... Nh7 {[%clk 0:02:44.1]} 22. d5 {[%clk
0:04:01.4]} 22... cxd5 {[%clk 0:02:35.6]} 23. Bxd5 {[%clk 0:03:59.7]} 23... g5
{[%clk 0:02:30.4]} 24. fxg6 {[%clk 0:03:57.1]} 24... Ng5 {[%clk 0:02:17.9]} 25.
gxf7+ {[%clk 0:03:52.8]} 25... Nxf7 {[%clk 0:02:11]} 26. Qg6+ {[%clk 0:03:51.7]}
1-0

[Event "Live Chess"]
[Site "Chess.com"]
[Date "2023.05.21"]
[Round "-"]
[White "Man-Del-Brot"]
[Black "raminguy"]
[Result "0-1"]
[WhiteElo "1095"]
[BlackElo "1931"]
[TimeControl "300"]
[EndTime "9:00:22 PDT"]
[Termination "raminguy won on time"]

1. e4 {[%clk 0:04:53]} 1... e5 {[%clk 0:04:57.6]} 2. Bc4 {[%clk 0:04:51.6]} 2...
Nc6 {[%clk 0:04:57.3]} 3. d3 {[%clk 0:04:50.8]} 3... Nf6 {[%clk 0:04:56.8]} 4.
Nf3 {[%clk 0:04:46.6]} 4... Na5 {[%clk 0:04:54.3]} 5. Bxf7+ {[%clk 0:04:35.8]}
5... Kxf7 {[%clk 0:04:52.4]} 6. Ng5+ {[%clk 0:04:34.8]} 6... Kg8 {[%clk
0:04:43.3]} 7. O-O {[%clk 0:04:32]} 7... h6 {[%clk 0:04:40.9]} 8. Nf3 {[%clk
0:04:25.7]} 8... Nc6 {[%clk 0:04:39]} 9. Nc3 {[%clk 0:04:21.4]} 9... d6 {[%clk
0:04:37.4]} 10. Nd5 {[%clk 0:04:19.2]} 10... Nxd5 {[%clk 0:04:35]} 11. exd5
{[%clk 0:04:18]} 11... Ne7 {[%clk 0:04:34.7]} 12. c4 {[%clk 0:04:13.6]} 12...
Bg4 {[%clk 0:04:32.4]} 13. b3 {[%clk 0:04:10.1]} 13... c6 {[%clk 0:04:24.3]} 14.
Bb2 {[%clk 0:04:08.2]} 14... cxd5 {[%clk 0:04:22.8]} 15. cxd5 {[%clk 0:04:04.7]}
15... Nxd5 {[%clk 0:04:22.7]} 16. h3 {[%clk 0:04:02.8]} 16... Bh5 {[%clk
0:04:21.2]} 17. g4 {[%clk 0:04:01.2]} 17... Bg6 {[%clk 0:04:19.4]} 18. Rc1
{[%clk 0:03:32.2]} 18... Nf4 {[%clk 0:04:17.4]} 19. Kh2 {[%clk 0:03:19.4]} 19...
Nxd3 {[%clk 0:04:10.2]} 20. Rc2 {[%clk 0:03:09.6]} 20... Nf4 {[%clk 0:04:08.2]}
21. Rd2 {[%clk 0:03:00.7]} 21... Qe7 {[%clk 0:03:55.9]} 22. Ba3 {[%clk
0:02:47.6]} 22... Rd8 {[%clk 0:03:46.8]} 23. Re1 {[%clk 0:02:42.9]} 23... Qf6
{[%clk 0:03:11.5]} 24. Bb2 {[%clk 0:02:21.6]} 24... Re8 {[%clk 0:03:04.5]} 25.
Ba3 {[%clk 0:02:05.3]} 25... h5 {[%clk 0:03:02.5]} 26. g5 {[%clk 0:02:02.5]}
26... Qf5 {[%clk 0:03:01.2]} 27. Ng1 {[%clk 0:01:42.1]} 27... Qxg5 {[%clk
0:02:56.1]} 28. Qf3 {[%clk 0:01:08.5]} 28... h4 {[%clk 0:02:41.3]} 29. Qg4
{[%clk 0:00:42]} 29... Nxh3 {[%clk 0:02:34.8]} 30. Qxg5 {[%clk 0:00:39]} 30...
Nxg5 {[%clk 0:02:33.7]} 31. f4 {[%clk 0:00:09.2]} 31... Ne4 {[%clk 0:02:28.3]}
0-1